[Event "Early-Titled-Tuesday-Blitz-January-30-2024"]
[Site "Chess.com"]
[Date "2024.01.30"]
[Round "3"]
[White "Shushik"]
[Black "Susal_De_Silva"]
[Result "1-0"]
[WhiteElo "2532"]
[BlackElo "2744"]
[TimeControl "180+1"]
[EndTime "8:30:14 PST"]
[Termination "Shushik won by resignation"]

1. e4 {[%clk 0:03:00.9]} 1... c6 {[%clk 0:02:59.9]} 2. d4 {[%clk 0:03:00.1]}
2... d5 {[%clk 0:03:00.2]} 3. e5 {[%clk 0:03:00.7]} 3... Bf5 {[%clk 0:03:00.1]}
4. Nf3 {[%clk 0:03:00.8]} 4... e6 {[%clk 0:02:59.7]} 5. Be2 {[%clk 0:03:01.5]}
5... Nd7 {[%clk 0:02:59.7]} 6. O-O {[%clk 0:03:02]} 6... h6 {[%clk 0:02:56.8]}
7. Nbd2 {[%clk 0:03:01.6]} 7... Ne7 {[%clk 0:02:56.8]} 8. a4 {[%clk 0:03:00.6]}
8... Bh7 {[%clk 0:02:50.7]} 9. Nb3 {[%clk 0:02:57.2]} 9... Nf5 {[%clk 0:02:49]}
10. a5 {[%clk 0:02:55.4]} 10... a6 {[%clk 0:02:47.2]} 11. Bd2 {[%clk 0:02:51.8]}
11... Be7 {[%clk 0:02:45.5]} 12. g4 {[%clk 0:02:49.7]} 12... Nh4 {[%clk
0:02:44.3]} 13. Nxh4 {[%clk 0:02:50.4]} 13... Bxh4 {[%clk 0:02:43.5]} 14. f4
{[%clk 0:02:51.1]} 14... Qc7 {[%clk 0:02:16.5]} 15. Bb4 {[%clk 0:02:48.1]} 15...
Be7 {[%clk 0:02:12.8]} 16. Bxe7 {[%clk 0:02:41.8]} 16... Kxe7 {[%clk 0:02:13.6]}
17. f5 {[%clk 0:02:39.2]} 17... c5 {[%clk 0:02:11.8]} 18. c3 {[%clk 0:02:32.7]}
18... h5 {[%clk 0:02:05.5]} 19. Qd2 {[%clk 0:02:17.9]} 19... Rag8 {[%clk
0:01:50.3]} 20. fxe6 {[%clk 0:02:00.6]} 20... fxe6 {[%clk 0:01:49.4]} 21. Qg5+
{[%clk 0:02:00.4]} 21... Ke8 {[%clk 0:01:48.3]} 22. Qxh5+ {[%clk 0:01:54.7]}
22... Kd8 {[%clk 0:01:48.4]} 23. Qf7 {[%clk 0:01:46.3]} 23... c4 {[%clk
0:01:32.2]} 24. Nd2 {[%clk 0:01:38.2]} 24... Qc6 {[%clk 0:01:29.4]} 25. Nf3
{[%clk 0:01:28.8]} 25... Rf8 {[%clk 0:01:23.7]} 26. Qh5 {[%clk 0:01:25.6]} 26...
Bd3 {[%clk 0:01:21.2]} 27. Qg5+ {[%clk 0:01:24.6]} 27... Kc8 {[%clk 0:01:19.6]}
28. Bxd3 {[%clk 0:01:24.3]} 28... cxd3 {[%clk 0:01:20.5]} 29. Nh4 {[%clk
0:01:18.5]} 29... Rxf1+ {[%clk 0:01:14.3]} 30. Rxf1 {[%clk 0:01:18.1]} 30... Qb5
{[%clk 0:01:14.6]} 31. Rf2 {[%clk 0:01:01.6]} 31... Qxa5 {[%clk 0:01:01.6]} 32.
Ng6 {[%clk 0:00:56.5]} 32... Re8 {[%clk 0:00:58.8]} 33. Ne7+ {[%clk 0:00:50.6]}
33... Kb8 {[%clk 0:00:58.1]} 34. Qxg7 {[%clk 0:00:49.3]} 34... Qd8 {[%clk
0:00:57.3]} 35. Ng6 {[%clk 0:00:42.7]} 35... Rg8 {[%clk 0:00:56.4]} 36. Qf7
{[%clk 0:00:41.4]} 36... Nb6 {[%clk 0:00:55.1]} 37. h4 {[%clk 0:00:37.4]} 37...
Nc4 {[%clk 0:00:53.8]} 38. b3 {[%clk 0:00:31.3]} 38... d2 {[%clk 0:00:52.1]} 39.
Qf3 {[%clk 0:00:29.9]} 39... Rxg6 {[%clk 0:00:49.1]} 40. bxc4 {[%clk 0:00:30.1]}
40... Qxh4 {[%clk 0:00:49.5]} 41. Qf8+ {[%clk 0:00:24.9]} 41... Kc7 {[%clk
0:00:34.6]} 42. Qd6+ {[%clk 0:00:24.4]} 1-0

[Event "Early-Titled-Tuesday-Blitz-January-30-2024"]
[Site "Chess.com"]
[Date "2024.01.30"]
[Round "3"]
[White "Kunalm64"]
[Black "mbchess97"]
[Result "0-1"]
[WhiteElo "2566"]
[BlackElo "2380"]
[TimeControl "180+1"]
[EndTime "8:30:14 PST"]
[Termination "mbchess97 won by resignation"]

1. e4 {[%clk 0:03:00.9]} 1... c5 {[%clk 0:03:00.1]} 2. Nf3 {[%clk 0:03:00.3]}
2... d6 {[%clk 0:02:59.4]} 3. Bb5+ {[%clk 0:02:59.9]} 3... Bd7 {[%clk 0:02:59]}
4. Bxd7+ {[%clk 0:02:59.7]} 4... Nxd7 {[%clk 0:02:59.9]} 5. O-O {[%clk
0:02:58.7]} 5... Ngf6 {[%clk 0:02:59.5]} 6. Qe2 {[%clk 0:02:58.6]} 6... e6
{[%clk 0:02:48.9]} 7. c4 {[%clk 0:02:57.7]} 7... e5 {[%clk 0:02:26]} 8. d3
{[%clk 0:02:55.7]} 8... Be7 {[%clk 0:02:24.2]} 9. Nc3 {[%clk 0:02:55.4]} 9...
O-O {[%clk 0:02:23.6]} 10. a3 {[%clk 0:02:55.6]} 10... Nb8 {[%clk 0:02:05.1]}
11. b4 {[%clk 0:02:53.5]} 11... Nc6 {[%clk 0:02:05]} 12. Rb1 {[%clk 0:02:52.9]}
12... Nd4 {[%clk 0:02:02.2]} 13. Nxd4 {[%clk 0:02:47.6]} 13... cxd4 {[%clk
0:01:52.6]} 14. Nd5 {[%clk 0:02:46]} 14... Nxd5 {[%clk 0:01:50.3]} 15. exd5
{[%clk 0:02:45.8]} 15... f5 {[%clk 0:01:38.7]} 16. f3 {[%clk 0:02:44.1]} 16...
Bg5 {[%clk 0:01:33.7]} 17. Bxg5 {[%clk 0:02:39]} 17... Qxg5 {[%clk 0:01:33.1]}
18. f4 {[%clk 0:02:39.2]} 18... Qe7 {[%clk 0:01:23.3]} 19. fxe5 {[%clk
0:02:35.5]} 19... dxe5 {[%clk 0:01:22.9]} 20. c5 {[%clk 0:02:35.2]} 20... e4
{[%clk 0:01:19.6]} 21. d6 {[%clk 0:02:34.2]} 21... Qe6 {[%clk 0:01:17.8]} 22.
Rbd1 {[%clk 0:02:28.5]} 22... e3 {[%clk 0:01:15.2]} 23. Ra1 {[%clk 0:01:55.6]}
23... a5 {[%clk 0:01:12.6]} 24. Qb2 {[%clk 0:01:36.6]} 24... Qd5 {[%clk
0:01:03.4]} 25. Rf4 {[%clk 0:01:19]} 25... axb4 {[%clk 0:01:03]} 26. Rxd4 {[%clk
0:01:16.6]} 26... bxa3 {[%clk 0:00:48.4]} 27. Qc3 {[%clk 0:01:11.5]} 27... Qe5
{[%clk 0:00:43.2]} 28. d7 {[%clk 0:01:07.2]} 28... e2 {[%clk 0:00:39.4]} 29. Re1
{[%clk 0:00:58.8]} 29... a2 {[%clk 0:00:34.2]} 30. Kf2 {[%clk 0:00:36.8]} 30...
a1=Q {[%clk 0:00:10.3]} 31. Rxa1 {[%clk 0:00:33.3]} 31... Rxa1 {[%clk
0:00:09.8]} 32. Qxa1 {[%clk 0:00:32.9]} 32... e1=Q+ {[%clk 0:00:09.8]} 33. Qxe1
{[%clk 0:00:32.4]} 33... Qxd4+ {[%clk 0:00:10.2]} 34. Qe3 {[%clk 0:00:24.7]}
34... Qxe3+ {[%clk 0:00:09.3]} 35. Kxe3 {[%clk 0:00:24.6]} 35... Rd8 {[%clk
0:00:09.6]} 0-1

[Event "Early-Titled-Tuesday-Blitz-January-30-2024"]
[Site "Chess.com"]
[Date "2024.01.30"]
[Round "3"]
[White "m_ezat"]
[Black "SahibSinghKnight"]
[Result "0-1"]
[WhiteElo "2474"]
[BlackElo "2660"]
[TimeControl "180+1"]
[EndTime "8:30:15 PST"]
[Termination "SahibSinghKnight won on time"]

1. d4 {[%clk 0:03:00.9]} 1... d5 {[%clk 0:02:57.2]} 2. c4 {[%clk 0:03:00.4]}
2... e6 {[%clk 0:02:57.2]} 3. Nc3 {[%clk 0:02:57.3]} 3... c6 {[%clk 0:02:55.4]}
4. e4 {[%clk 0:02:54.3]} 4... dxe4 {[%clk 0:02:54.7]} 5. Nxe4 {[%clk 0:02:51.7]}
5... Bb4+ {[%clk 0:02:54.8]} 6. Bd2 {[%clk 0:02:46.1]} 6... Qxd4 {[%clk
0:02:53.8]} 7. Bxb4 {[%clk 0:02:45]} 7... Qxe4+ {[%clk 0:02:52.7]} 8. Be2 {[%clk
0:02:44.1]} 8... Na6 {[%clk 0:02:52.1]} 9. Bf8 {[%clk 0:02:42.9]} 9... Qxg2
{[%clk 0:02:24]} 10. Qd6 {[%clk 0:01:12.8]} 10... Bd7 {[%clk 0:01:58.4]} 11.
O-O-O {[%clk 0:01:02.5]} 11... O-O-O {[%clk 0:01:44.6]} 12. c5 {[%clk
0:00:41.8]} 12... Nh6 {[%clk 0:01:02.5]} 13. Bxa6 {[%clk 0:00:10.6]} 13... bxa6
{[%clk 0:00:58.8]} 14. Be7 {[%clk 0:00:08.6]} 14... Nf5 {[%clk 0:00:58.4]} 15.
Qd3 {[%clk 0:00:05.9]} 15... Nxe7 {[%clk 0:00:56.3]} 16. Qxa6+ {[%clk 0:00:06]}
16... Kb8 {[%clk 0:00:56.9]} 17. Ne2 {[%clk 0:00:05.3]} 17... Qg5+ {[%clk
0:00:55.6]} 18. f4 {[%clk 0:00:04.2]} 18... Qxc5+ {[%clk 0:00:55.1]} 19. Kb1
{[%clk 0:00:05.1]} 19... Qb5 {[%clk 0:00:53.9]} 20. Qa3 {[%clk 0:00:04.4]} 20...
Nf5 {[%clk 0:00:40.8]} 21. Nc3 {[%clk 0:00:03.3]} 21... Qc4 {[%clk 0:00:36.2]}
22. Rd2 {[%clk 0:00:02.9]} 22... Bc8 {[%clk 0:00:35.1]} 23. Rhd1 {[%clk
0:00:02.2]} 23... Rxd2 {[%clk 0:00:35.1]} 24. Rxd2 {[%clk 0:00:02.7]} 24... Qxf4
{[%clk 0:00:32]} 25. Rc2 {[%clk 0:00:02.1]} 25... Qf1+ {[%clk 0:00:29.8]} 26.
Rc1 {[%clk 0:00:02.4]} 26... Qd3+ {[%clk 0:00:30.4]} 27. Ka1 {[%clk 0:00:03.3]}
27... Rd8 {[%clk 0:00:30.1]} 28. Qb4+ {[%clk 0:00:03.5]} 28... Bb7 {[%clk
0:00:29.6]} 29. Qa5 {[%clk 0:00:03.5]} 29... Qe3 {[%clk 0:00:27.6]} 30. Kb1
{[%clk 0:00:02.2]} 30... Qb6 {[%clk 0:00:20.5]} 31. Qe5+ {[%clk 0:00:01.6]}
31... Qc7 {[%clk 0:00:20.3]} 0-1

[Event "Early-Titled-Tuesday-Blitz-January-30-2024"]
[Site "Chess.com"]
[Date "2024.01.30"]
[Round "3"]
[White "SirGerhard"]
[Black "Jospem"]
[Result "0-1"]
[WhiteElo "2766"]
[BlackElo "3051"]
[TimeControl "180+1"]
[EndTime "8:30:20 PST"]
[Termination "Jospem won by checkmate"]

1. d4 {[%clk 0:03:00]} 1... Nf6 {[%clk 0:03:00.1]} 2. c4 {[%clk 0:03:00.1]} 2...
e6 {[%clk 0:03:00.4]} 3. Nf3 {[%clk 0:03:00.5]} 3... Bb4+ {[%clk 0:03:00.9]} 4.
Nbd2 {[%clk 0:03:00.5]} 4... O-O {[%clk 0:03:00.6]} 5. a3 {[%clk 0:03:00.8]}
5... Be7 {[%clk 0:03:01.4]} 6. e3 {[%clk 0:02:58.2]} 6... b6 {[%clk 0:03:01.2]}
7. Bd3 {[%clk 0:02:57.5]} 7... Bb7 {[%clk 0:03:01.8]} 8. O-O {[%clk 0:02:57.8]}
8... c5 {[%clk 0:03:02.5]} 9. Qe2 {[%clk 0:02:56.5]} 9... cxd4 {[%clk
0:03:02.8]} 10. exd4 {[%clk 0:02:56.7]} 10... d5 {[%clk 0:03:00.4]} 11. b3
{[%clk 0:02:56.6]} 11... Nc6 {[%clk 0:03:00.4]} 12. Bb2 {[%clk 0:02:56.6]} 12...
Re8 {[%clk 0:03:00.9]} 13. Rfe1 {[%clk 0:02:56.5]} 13... Bf8 {[%clk 0:03:01.2]}
14. Rac1 {[%clk 0:02:43.6]} 14... Rc8 {[%clk 0:02:58.8]} 15. g3 {[%clk
0:02:33.5]} 15... g6 {[%clk 0:02:57.5]} 16. Qe3 {[%clk 0:02:21.3]} 16... Bg7
{[%clk 0:02:55.7]} 17. c5 {[%clk 0:02:15.5]} 17... bxc5 {[%clk 0:02:52.7]} 18.
Rxc5 {[%clk 0:02:15.7]} 18... Nd7 {[%clk 0:02:49.4]} 19. Rc2 {[%clk 0:02:14.8]}
19... a5 {[%clk 0:02:48.6]} 20. Bb5 {[%clk 0:02:06.4]} 20... Qb6 {[%clk
0:02:45]} 21. a4 {[%clk 0:01:55.8]} 21... Ba6 {[%clk 0:02:41.2]} 22. Bxc6 {[%clk
0:01:49.3]} 22... Rxc6 {[%clk 0:02:40.7]} 23. Rec1 {[%clk 0:01:45.1]} 23... Rxc2
{[%clk 0:02:33.5]} 24. Rxc2 {[%clk 0:01:45.2]} 24... Nf6 {[%clk 0:02:06.2]} 25.
Ne5 {[%clk 0:01:40.3]} 25... Ne4 {[%clk 0:02:06.5]} 26. Nxe4 {[%clk 0:01:25.9]}
26... dxe4 {[%clk 0:02:07.4]} 27. Rc6 {[%clk 0:01:08.5]} 27... Qb7 {[%clk
0:02:07.6]} 28. Qc3 {[%clk 0:01:06.7]} 28... Rb8 {[%clk 0:01:25.6]} 29. Qxa5
{[%clk 0:00:43.1]} 29... Qxb3 {[%clk 0:01:11.1]} 30. Qxa6 {[%clk 0:00:39]} 30...
Bxe5 {[%clk 0:01:09.9]} 31. Rc8+ {[%clk 0:00:29.1]} 31... Rxc8 {[%clk
0:00:54.7]} 32. Qxc8+ {[%clk 0:00:28.7]} 32... Kg7 {[%clk 0:00:55.4]} 33. dxe5
{[%clk 0:00:29.3]} 33... Qxb2 {[%clk 0:00:55]} 34. Qc5 {[%clk 0:00:26]} 34...
Qa1+ {[%clk 0:00:53.9]} 35. Kg2 {[%clk 0:00:26]} 35... Qxa4 {[%clk 0:00:54.1]}
36. Qe7 {[%clk 0:00:25.9]} 36... Qa8 {[%clk 0:00:50.1]} 37. Kg1 {[%clk
0:00:25.4]} 37... Qd5 {[%clk 0:00:49.9]} 38. Qf6+ {[%clk 0:00:25.3]} 38... Kg8
{[%clk 0:00:50.6]} 39. h4 {[%clk 0:00:25.4]} 39... h5 {[%clk 0:00:49.3]} 40. Kh2
{[%clk 0:00:25.6]} 40... Qd2 {[%clk 0:00:45.3]} 41. Kh3 {[%clk 0:00:22]} 41...
e3 {[%clk 0:00:21]} 42. fxe3 {[%clk 0:00:19.9]} 42... Qxe3 {[%clk 0:00:18.2]}
43. Qd8+ {[%clk 0:00:20]} 43... Kh7 {[%clk 0:00:18.7]} 44. Qf6 {[%clk
0:00:20.3]} 44... Qa7 {[%clk 0:00:18.8]} 45. Kh2 {[%clk 0:00:19.8]} 45... Qb7
{[%clk 0:00:19.5]} 46. Kh3 {[%clk 0:00:20]} 46... Qh1# {[%clk 0:00:19.5]} 0-1

[Event "Early-Titled-Tuesday-Blitz-January-30-2024"]
[Site "Chess.com"]
[Date "2024.01.30"]
[Round "3"]
[White "zverr1"]
[Black "monomita"]
[Result "1-0"]
[WhiteElo "2546"]
[BlackElo "2771"]
[TimeControl "180+1"]
[EndTime "8:30:21 PST"]
[Termination "zverr1 won by resignation"]

1. d4 {[%clk 0:03:00.9]} 1... Nf6 {[%clk 0:02:33.1]} 2. c4 {[%clk 0:02:52.5]}
2... c6 {[%clk 0:02:32.7]} 3. Nf3 {[%clk 0:02:51.3]} 3... d5 {[%clk 0:02:33.1]}
4. g3 {[%clk 0:02:52]} 4... e6 {[%clk 0:02:32.2]} 5. Bg2 {[%clk 0:02:51.2]} 5...
Bb4+ {[%clk 0:02:30.2]} 6. Bd2 {[%clk 0:02:50.4]} 6... Be7 {[%clk 0:02:29.2]} 7.
O-O {[%clk 0:02:48.9]} 7... O-O {[%clk 0:02:29.5]} 8. Qc2 {[%clk 0:02:46.5]}
8... Nbd7 {[%clk 0:02:28.6]} 9. b3 {[%clk 0:02:41]} 9... b6 {[%clk 0:02:27.9]}
10. Bc3 {[%clk 0:02:41]} 10... Ba6 {[%clk 0:02:24.5]} 11. Nbd2 {[%clk
0:02:41.3]} 11... Rc8 {[%clk 0:02:23.9]} 12. e4 {[%clk 0:02:37.1]} 12... c5
{[%clk 0:02:23.2]} 13. exd5 {[%clk 0:02:32.2]} 13... exd5 {[%clk 0:02:20.4]} 14.
Rfe1 {[%clk 0:02:24.8]} 14... cxd4 {[%clk 0:02:11.9]} 15. Nxd4 {[%clk
0:02:24.5]} 15... Bc5 {[%clk 0:02:08.2]} 16. Qb2 {[%clk 0:02:12.8]} 16... dxc4
{[%clk 0:01:52.8]} 17. bxc4 {[%clk 0:01:59.7]} 17... Ng4 {[%clk 0:01:43.3]} 18.
Re2 {[%clk 0:01:18.7]} 18... Nde5 {[%clk 0:01:36.8]} 19. h3 {[%clk 0:01:14.7]}
19... Nd3 {[%clk 0:01:31.5]} 20. Qc2 {[%clk 0:01:11.3]} 20... Ngxf2 {[%clk
0:01:03.4]} 21. N2b3 {[%clk 0:00:56.7]} 21... Bxc4 {[%clk 0:01:02]} 22. Rxf2
{[%clk 0:00:49.6]} 22... Nxf2 {[%clk 0:00:44.4]} 23. Qxf2 {[%clk 0:00:49.6]}
23... Bxb3 {[%clk 0:00:33]} 24. axb3 {[%clk 0:00:50.5]} 24... a5 {[%clk
0:00:32.7]} 25. Rd1 {[%clk 0:00:44.7]} 25... Qg5 {[%clk 0:00:18.6]} 26. Kh2
{[%clk 0:00:43.7]} 26... Rfd8 {[%clk 0:00:17]} 27. Rf1 {[%clk 0:00:34.6]} 27...
Qf6 {[%clk 0:00:06.8]} 28. Qxf6 {[%clk 0:00:33.9]} 28... gxf6 {[%clk 0:00:07]}
29. Nf5 {[%clk 0:00:31.5]} 29... Rd3 {[%clk 0:00:06.5]} 30. Bxf6 {[%clk
0:00:29]} 30... Rxb3 {[%clk 0:00:06.3]} 31. Bd5 {[%clk 0:00:27.2]} 31... Rb2+
{[%clk 0:00:05.5]} 32. Bxb2 {[%clk 0:00:25.6]} 1-0

[Event "Early-Titled-Tuesday-Blitz-January-30-2024"]
[Site "Chess.com"]
[Date "2024.01.30"]
[Round "3"]
[White "alvarorodriguezavila"]
[Black "PattyCastillo"]
[Result "1-0"]
[WhiteElo "2358"]
[BlackElo "1995"]
[TimeControl "180+1"]
[EndTime "8:30:24 PST"]
[Termination "alvarorodriguezavila won by resignation"]

1. e4 {[%clk 0:03:00.9]} 1... c5 {[%clk 0:02:58.5]} 2. d4 {[%clk 0:03:01.4]}
2... cxd4 {[%clk 0:02:58.4]} 3. c3 {[%clk 0:03:02.1]} 3... dxc3 {[%clk
0:02:58.7]} 4. Bc4 {[%clk 0:03:02.5]} 4... e6 {[%clk 0:02:57.9]} 5. Nf3 {[%clk
0:03:02.2]} 5... Nc6 {[%clk 0:02:57.8]} 6. O-O {[%clk 0:03:02.1]} 6... Nge7
{[%clk 0:02:54.2]} 7. Nxc3 {[%clk 0:02:58.9]} 7... a6 {[%clk 0:02:49.1]} 8. Bf4
{[%clk 0:02:48.3]} 8... Ng6 {[%clk 0:02:45.2]} 9. Bd6 {[%clk 0:02:48.8]} 9... b5
{[%clk 0:02:39.7]} 10. Bb3 {[%clk 0:02:21.1]} 10... Be7 {[%clk 0:02:26.7]} 11.
e5 {[%clk 0:02:05.6]} 11... Bb7 {[%clk 0:02:09.8]} 12. Re1 {[%clk 0:02:04.7]}
12... Na5 {[%clk 0:02:09.1]} 13. Bc2 {[%clk 0:02:04.2]} 13... Nc4 {[%clk
0:02:06.8]} 14. Bxg6 {[%clk 0:01:08.1]} 14... hxg6 {[%clk 0:02:03.7]} 15. Bxe7
{[%clk 0:01:09]} 15... Qxe7 {[%clk 0:01:55.1]} 16. b3 {[%clk 0:01:09.5]} 16...
Nb6 {[%clk 0:00:43.4]} 17. Ne4 {[%clk 0:01:05.1]} 17... Bd5 {[%clk 0:00:39.6]}
18. Nd6+ {[%clk 0:01:04.4]} 18... Kf8 {[%clk 0:00:37.6]} 19. Qd4 {[%clk
0:01:05.3]} 19... Bxf3 {[%clk 0:00:32.7]} 20. gxf3 {[%clk 0:00:27.5]} 20... Nd5
{[%clk 0:00:29.7]} 21. Rac1 {[%clk 0:00:20.5]} 21... Qg5+ {[%clk 0:00:26.1]} 22.
Qg4 {[%clk 0:00:20.8]} 22... Qh6 {[%clk 0:00:16.9]} 23. Qg3 {[%clk 0:00:19.5]}
23... Nf4 {[%clk 0:00:14.6]} 24. Rcd1 {[%clk 0:00:13.7]} 24... Nh3+ {[%clk
0:00:12.1]} 25. Kf1 {[%clk 0:00:14.1]} 25... Nf4 {[%clk 0:00:11.4]} 26. Kg1
{[%clk 0:00:12.9]} 26... Nh3+ {[%clk 0:00:11.2]} 27. Kh1 {[%clk 0:00:12.2]}
27... Nf4 {[%clk 0:00:11]} 28. Ne4 {[%clk 0:00:10.1]} 28... Qh3 {[%clk
0:00:10.2]} 29. Rxd7 {[%clk 0:00:07.5]} 29... Qxg3 {[%clk 0:00:09.4]} 30. fxg3
{[%clk 0:00:07.9]} 30... Nd3 {[%clk 0:00:09.6]} 31. Rxd3 {[%clk 0:00:07.1]} 1-0

[Event "Early-Titled-Tuesday-Blitz-January-30-2024"]
[Site "Chess.com"]
[Date "2024.01.30"]
[Round "3"]
[White "KamilGrycel"]
[Black "FGHSMN"]
[Result "0-1"]
[WhiteElo "2544"]
[BlackElo "2890"]
[TimeControl "180+1"]
[EndTime "8:30:25 PST"]
[Termination "FGHSMN won by resignation"]

1. d4 {[%clk 0:03:00]} 1... Nf6 {[%clk 0:02:59.5]} 2. Nf3 {[%clk 0:02:59.3]}
2... e6 {[%clk 0:02:59.8]} 3. Bf4 {[%clk 0:02:59.2]} 3... b6 {[%clk 0:02:58.8]}
4. e3 {[%clk 0:02:59.4]} 4... Bb7 {[%clk 0:02:59.3]} 5. h3 {[%clk 0:02:59.9]}
5... Be7 {[%clk 0:02:59.5]} 6. Nbd2 {[%clk 0:03:00]} 6... O-O {[%clk 0:02:59.7]}
7. Bd3 {[%clk 0:03:00.3]} 7... c5 {[%clk 0:02:58.8]} 8. c3 {[%clk 0:03:00.3]}
8... Nc6 {[%clk 0:02:56.7]} 9. O-O {[%clk 0:02:59.8]} 9... d6 {[%clk 0:02:55.3]}
10. Bh2 {[%clk 0:02:56.8]} 10... a6 {[%clk 0:02:53]} 11. a4 {[%clk 0:02:56.6]}
11... h6 {[%clk 0:02:46.2]} 12. Qe2 {[%clk 0:02:56.3]} 12... d5 {[%clk
0:02:29.9]} 13. Ne5 {[%clk 0:02:55.4]} 13... Nxe5 {[%clk 0:02:28.6]} 14. dxe5
{[%clk 0:02:47.7]} 14... Nd7 {[%clk 0:02:28]} 15. f4 {[%clk 0:02:47.9]} 15...
Qc7 {[%clk 0:02:17]} 16. e4 {[%clk 0:02:39.2]} 16... c4 {[%clk 0:02:13.8]} 17.
Bc2 {[%clk 0:02:39.1]} 17... b5 {[%clk 0:02:13.2]} 18. exd5 {[%clk 0:02:32.8]}
18... Bxd5 {[%clk 0:02:12.9]} 19. f5 {[%clk 0:02:28.7]} 19... Bg5 {[%clk
0:02:06.4]} 20. Nf3 {[%clk 0:02:26.7]} 20... Bxf3 {[%clk 0:01:46.9]} 21. Rxf3
{[%clk 0:02:23.1]} 21... bxa4 {[%clk 0:01:42.4]} 22. Rxa4 {[%clk 0:02:09.8]}
22... Qb6+ {[%clk 0:01:41.1]} 23. Kh1 {[%clk 0:02:08.6]} 23... Nc5 {[%clk
0:01:34.2]} 24. Rxc4 {[%clk 0:02:06.2]} 24... exf5 {[%clk 0:01:33.7]} 25. Bxf5
{[%clk 0:02:00.7]} 25... Ne6 {[%clk 0:01:31.4]} 26. Bxe6 {[%clk 0:01:56.3]}
26... Qxe6 {[%clk 0:01:30.1]} 27. Bg3 {[%clk 0:01:46.6]} 27... Rab8 {[%clk
0:01:28.2]} 28. b4 {[%clk 0:01:46.2]} 28... Rbc8 {[%clk 0:01:26.3]} 29. Rxc8
{[%clk 0:01:43.5]} 29... Rxc8 {[%clk 0:01:27.2]} 30. Kh2 {[%clk 0:01:42.8]}
30... h5 {[%clk 0:01:23.4]} 31. Qe4 {[%clk 0:01:12.5]} 31... Rc4 {[%clk
0:01:16.3]} 32. Qf5 {[%clk 0:00:50]} 32... Qe7 {[%clk 0:01:09.3]} 33. Rd3 {[%clk
0:00:43.7]} 33... h4 {[%clk 0:01:07.2]} 34. Bf2 {[%clk 0:00:43]} 34... g6 {[%clk
0:00:57.5]} 35. Qd7 {[%clk 0:00:41.1]} 35... Qxe5+ {[%clk 0:00:57.3]} 36. Kg1
{[%clk 0:00:40.3]} 36... Rxc3 {[%clk 0:00:54.7]} 37. Rd1 {[%clk 0:00:37]} 37...
Rc2 {[%clk 0:00:47.8]} 38. Re1 {[%clk 0:00:22.8]} 38... Re2 {[%clk 0:00:28.1]}
39. Rxe2 {[%clk 0:00:20.4]} 39... Qxe2 {[%clk 0:00:27.9]} 40. Qc8+ {[%clk
0:00:19.6]} 40... Kh7 {[%clk 0:00:27.4]} 41. Qc2 {[%clk 0:00:20.5]} 41... Qxc2
{[%clk 0:00:26.9]} 0-1

[Event "Early-Titled-Tuesday-Blitz-January-30-2024"]
[Site "Chess.com"]
[Date "2024.01.30"]
[Round "3"]
[White "Incognito_Knight"]
[Black "BilodeauA"]
[Result "0-1"]
[WhiteElo "2732"]
[BlackElo "3028"]
[TimeControl "180+1"]
[EndTime "8:30:26 PST"]
[Termination "BilodeauA won on time"]

1. c4 {[%clk 0:03:00.9]} 1... e5 {[%clk 0:03:00.1]} 2. Nc3 {[%clk 0:02:59.3]}
2... d6 {[%clk 0:03:00.5]} 3. d4 {[%clk 0:02:54]} 3... exd4 {[%clk 0:03:00.9]}
4. Qxd4 {[%clk 0:02:54.9]} 4... Nc6 {[%clk 0:03:01.4]} 5. Qd2 {[%clk 0:02:55.3]}
5... Nf6 {[%clk 0:03:02.1]} 6. Nf3 {[%clk 0:02:53.3]} 6... g6 {[%clk 0:02:59.2]}
7. b3 {[%clk 0:02:52.2]} 7... a5 {[%clk 0:02:54.1]} 8. Bb2 {[%clk 0:02:51.5]}
8... a4 {[%clk 0:02:41.5]} 9. Nxa4 {[%clk 0:02:41.4]} 9... d5 {[%clk 0:02:29.4]}
10. cxd5 {[%clk 0:02:25.7]} 10... Ne4 {[%clk 0:02:08.6]} 11. Qe3 {[%clk
0:02:17.9]} 11... Rxa4 {[%clk 0:01:58.3]} 12. O-O-O {[%clk 0:01:45.7]} 12... Bc5
{[%clk 0:01:56.3]} 13. Qh6 {[%clk 0:00:49.7]} 13... Bf8 {[%clk 0:01:11.6]} 14.
Qe3 {[%clk 0:00:36.4]} 14... Bc5 {[%clk 0:01:11.7]} 15. Qh6 {[%clk 0:00:36.6]}
15... Rxa2 {[%clk 0:00:53.7]} 16. dxc6 {[%clk 0:00:34.1]} 16... Qe7 {[%clk
0:00:52.3]} 17. Qg7 {[%clk 0:00:19.6]} 17... Rf8 {[%clk 0:00:51.4]} 18. Kb1
{[%clk 0:00:16.2]} 18... Rxb2+ {[%clk 0:00:47.4]} 19. Qxb2 {[%clk 0:00:17.1]}
19... Nxf2 {[%clk 0:00:45.9]} 20. Rd2 {[%clk 0:00:02.2]} 20... Nxh1 {[%clk
0:00:27.1]} 21. cxb7 {[%clk 0:00:02.4]} 21... Bxb7 {[%clk 0:00:24.1]} 22. e3
{[%clk 0:00:03]} 22... f6 {[%clk 0:00:17.3]} 23. Bb5+ {[%clk 0:00:03]} 23... c6
{[%clk 0:00:15.1]} 24. Bc4 {[%clk 0:00:02.7]} 24... Qe4+ {[%clk 0:00:15.7]} 25.
Bd3 {[%clk 0:00:02.5]} 25... Qe6 {[%clk 0:00:14.2]} 26. Bc4 {[%clk 0:00:02.6]}
26... Qg4 {[%clk 0:00:10.4]} 27. Qc1 {[%clk 0:00:02.3]} 27... Qe4+ {[%clk
0:00:10.6]} 28. Bd3 {[%clk 0:00:02.2]} 28... Qe7 {[%clk 0:00:11]} 29. Qxh1
{[%clk 0:00:02]} 29... Kf7 {[%clk 0:00:10.8]} 30. Bc4+ {[%clk 0:00:02.2]} 30...
Kg7 {[%clk 0:00:11.4]} 31. Qd1 {[%clk 0:00:02.9]} 31... Bc8 {[%clk 0:00:11.9]}
32. Nd4 {[%clk 0:00:02.7]} 32... Rd8 {[%clk 0:00:09.7]} 33. Nf3 {[%clk
0:00:02.3]} 33... Bf5+ {[%clk 0:00:10]} 34. Kb2 {[%clk 0:00:01.8]} 34... Ra8
{[%clk 0:00:09.5]} 0-1